fUSD/lending_fUSD_20250522
["ID","MTS","AMOUNT","RATE_DAILY","PERIOD"]
[362009607,1747935049696,-1998.51,0.00033423,5]
[362009608,1747935049705,-470.36,0.00033423,5]
[362009609,1747935049715,-420.0,0.00033423,5]
[362009610,1747935049725,-639.49,0.00033423,5]
[362009611,1747935049735,-420.0,0.00033423,5]
[362009612,1747935049744,-1494.47,0.00033423,5]
[362009613,1747935049753,-511.54,0.00033423,5]
[362009614,1747935049763,-420.0,0.00033423,5]
[362009615,1747935049772,-420.0,0.00033423,5]
[362009616,1747935049781,-708.15,0.00033423,5]
[362009617,1747935049791,-517.04,0.00033423,5]
[362009618,1747935049800,-503.81,0.00033423,5]
[362009619,1747935049810,-420.0,0.00033423,5]
[362009620,1747935049819,-1263.37,0.00033423,5]
[362009621,1747935049829,-536.17,0.00033423,5]
[362009622,1747935049839,-334.90611796,0.00033423,5]
[362009623,1747935049848,-420.0,0.00033423,5]
[362009624,1747935049858,-420.0,0.00033423,5]
[362009625,1747935049868,-517.27,0.00033423,5]
[362009626,1747935049877,-420.0,0.00033423,5]
[362009627,1747935049887,-268.88902916,0.00033423,5]
[362009628,1747935049897,-439.30982368,0.00033423,5]
[362009629,1747935049907,-420.0,0.00033423,5]
[362009630,1747935049917,-420.0,0.00033423,5]
[362009631,1747935049926,-500.0,0.00033423,30]
[362009632,1747935049936,-420.0,0.00033423,5]
[362009633,1747935049946,-521.46,0.00033423,5]
[362009634,1747935049956,-1404.38933826,0.00033423,2]
[362009635,1747935050320,-581.32066174,0.00033423,2]
[362009636,1747935050331,-742.81,0.00033423,5]
[362009637,1747935050340,-1151.71,0.00033423,5]
[362009638,1747935050349,-420.0,0.00033423,5]
[362009639,1747935050359,-469.35,0.00033423,5]
[362009640,1747935050368,-420.0,0.00033423,5]
[362009641,1747935050377,-420.0,0.00033423,5]
[362009642,1747935050386,-420.0,0.00033423,5]
[362009643,1747935050396,-420.0,0.00033423,5]
[362009644,1747935050405,-625.55,0.00033423,5]
[362009645,1747935050414,-420.0,0.00033423,5]
[362009646,1747935050424,-420.0,0.00033423,5]
[362009647,1747935050434,-592.81,0.00033423,5]
[362009648,1747935050445,-420.0,0.00033423,5]
[362009649,1747935050455,-570.36,0.00033423,5]
[362009650,1747935050464,-420.0,0.00033423,5]
[362009651,1747935050475,-420.0,0.00033423,5]
[362009652,1747935050485,-759.32,0.00033423,5]
[362009653,1747935050495,-432.61,0.00033423,5]
[362009654,1747935050505,-420.0,0.00033423,5]
[362009655,1747935050514,-420.0,0.00033423,5]
[362009656,1747935050523,-650.73,0.00033423,5]
[362009657,1747935050533,-637.2,0.00033423,5]
[362009658,1747935050543,-420.0,0.00033423,5]
[362009659,1747935050553,-420.0,0.00033423,5]
[362009660,1747935050562,-420.0,0.00033423,5]
[362009661,1747935050572,-420.0,0.00033423,5]
[362009662,1747935050581,-602.38,0.00033423,5]
[362009663,1747935050591,-2969.88,0.00033423,5]
[362009664,1747935050602,-420.0,0.00033424,5]
[362009665,1747935050611,-420.0,0.00033424,5]
[362009666,1747935050622,-300.0,0.00033424,5]
[362009667,1747935050631,-597.49,0.00033424,5]
[362009668,1747935050640,-420.14,0.00033424,5]
[362009669,1747935050651,-420.0,0.00033424,5]
[362009670,1747935050661,-420.0,0.00033424,5]
[362009671,1747935050670,-420.0,0.00033424,5]
[362009672,1747935050680,-420.0,0.00033424,5]
[362009673,1747935050690,-420.0,0.00033424,5]
[362009674,1747935050700,-420.0,0.00033424,5]
[362009675,1747935050709,-432.04351594,0.00033424,5]
[362009676,1747935050719,-420.0,0.00033424,5]
[362009677,1747935050729,-427.8,0.00033424,5]
[362009678,1747935050738,-420.0,0.00033424,5]
[362009679,1747935050748,-420.0,0.00033424,5]
[362009680,1747935050759,-420.0,0.00033424,5]
[362009681,1747935050768,-420.0,0.00033424,5]
[362009682,1747935050778,-421.55,0.00033424,5]
[362009683,1747935050788,-420.0,0.00033424,5]
[362009684,1747935050798,-420.0,0.00033424,5]
[362009685,1747935050808,-420.0,0.00033424,5]
[362009686,1747935050818,-231.30318437,0.00033424,5]
[362009687,1747935050828,-420.0,0.00033424,5]
[362009688,1747935050838,-420.0,0.00033424,5]
[362009689,1747935050847,-420.0,0.00033424,5]
[362009690,1747935050857,-420.0,0.00033424,5]
[362009691,1747935050866,-420.0,0.00033424,5]
[362009692,1747935050875,-420.0,0.00033424,5]
[362009693,1747935050885,-420.0,0.00033424,5]
[362009694,1747935050895,-420.0,0.00033424,5]
[362009695,1747935050904,-420.0,0.00033424,5]
[362009696,1747935050914,-185.47567247,0.00033424,5]
[362009697,1747935050924,-420.0,0.00033424,5]
[362009698,1747935050933,-455.43,0.00033424,5]
[362009699,1747935050942,-420.0,0.00033424,5]
[362009700,1747935050952,-232.5254185,0.00033424,5]
[362009701,1747935050962,-420.0,0.00033424,5]
[362009702,1747935050972,-603.05,0.00033424,5]
[362009703,1747935050982,-420.0,0.00033424,5]
[362009704,1747935050991,-420.0,0.00033424,5]
[362009705,1747935051000,-420.0,0.00033424,5]
[362009706,1747935051010,-420.0,0.00033424,5]
[362009707,1747935051020,-420.0,0.00033424,5]
[362009708,1747935051029,-420.0,0.00033424,5]
[362009709,1747935051038,-454.01,0.00033424,5]
[362009710,1747935051047,-420.0,0.00033424,5]
[362009711,1747935051057,-420.0,0.00033424,5]
[362009712,1747935051066,-420.0,0.00033424,5]
[362009713,1747935051076,-420.0,0.00033424,5]
[362009714,1747935051085,-420.0,0.00033424,5]
[362009715,1747935051095,-420.0,0.00033424,5]
[362009716,1747935051104,-420.0,0.00033424,5]
[362009717,1747935051114,-420.0,0.00033424,5]
[362009718,1747935051123,-278.08739192,0.00033424,5]
[362009719,1747935051137,-457.94,0.00033424,5]
[362009720,1747935051146,-420.0,0.00033424,5]
[362009721,1747935051156,-956.72,0.00033424,5]
[362009722,1747935051165,-564.7,0.00033424,5]
[362009723,1747935051176,-483.05,0.00033424,5]
[362009724,1747935051185,-420.0,0.00033424,5]
[362009725,1747935051195,-795.32,0.00033424,5]
[362009726,1747935051205,-420.0,0.00033424,5]
[362009727,1747935051215,-465.07,0.00033424,5]
[362009728,1747935051225,-456.27,0.00033424,5]
[362009729,1747935051235,-420.0,0.00033424,5]
[362009730,1747935051244,-420.0,0.00033424,5]
[362009731,1747935051254,-420.0,0.00033424,5]
[362009732,1747935051264,-420.0,0.00033424,5]
[362009733,1747935051273,-652.27,0.00033424,5]
[362009734,1747935051283,-420.0,0.00033424,5]
[362009735,1747935051292,-552.16,0.00033424,5]
[362009736,1747935051302,-420.0,0.00033424,5]
[362009737,1747935051311,-420.0,0.00033424,5]
[362009738,1747935051320,-616.4,0.00033424,5]
[362009739,1747935051330,-420.0,0.00033424,5]
[362009740,1747935051340,-420.0,0.00033424,5]
[362009741,1747935051349,-420.0,0.00033424,5]
[362009742,1747935051359,-420.0,0.00033424,5]
[362009743,1747935051368,-313.92693086,0.00033424,5]
[362009744,1747935051377,-420.0,0.00033424,5]
[362009745,1747935051387,-420.0,0.00033424,5]
[362009746,1747935051474,-692.55,0.00033424,5]
[362009747,1747935051484,-420.0,0.00033424,5]
[362009748,1747935051494,-497.14,0.00033424,5]
[362009749,1747935051503,-1120.41,0.00033424,5]
[362009750,1747935051513,-420.0,0.00033424,5]
[362009751,1747935051524,-344.06844002,0.00033424,5]
[362009752,1747935051533,-420.0,0.00033424,5]
[362009753,1747935051542,-420.0,0.00033424,5]
[362009754,1747935051551,-420.0,0.00033424,5]
[362009755,1747935051560,-709.8,0.00033424,5]
[362009756,1747935051569,-420.0,0.00033424,5]
[362009757,1747935051579,-420.0,0.00033424,5]
[362009758,1747935051588,-545.28,0.00033424,5]
[362009759,1747935051598,-804.9,0.00033424,5]
[362009760,1747935051607,-420.0,0.00033424,5]
[362009761,1747935051616,-420.0,0.00033424,5]
[362009762,1747935051624,-420.0,0.00033424,5]
[362009763,1747935051634,-714.59,0.00033424,5]
[362009764,1747935051642,-420.0,0.00033424,5]
[362009765,1747935051651,-420.0,0.00033424,5]
[362009766,1747935051661,-529.89,0.00033424,5]
[362009767,1747935051670,-420.0,0.00033424,5]
[362009768,1747935051680,-420.0,0.00033424,5]
[362009769,1747935051689,-420.0,0.00033424,5]
[362009770,1747935051698,-507.74,0.00033424,5]
[362009771,1747935051708,-657.62,0.00033424,5]
[362009772,1747935051718,-420.0,0.00033424,5]
[362009773,1747935051727,-841.13,0.00033424,5]
[362009774,1747935051737,-420.0,0.00033424,5]
[362009775,1747935051746,-420.0,0.00033424,5]
[362009776,1747935051756,-420.0,0.00033424,5]
[362009777,1747935051765,-420.0,0.00033424,5]
[362009778,1747935051775,-153.526827,0.00033483,4]
[362009779,1747935051784,-500.0,0.00033673,5]
[362009780,1747935051794,-513.32456536,0.00033673,5]
[362009781,1747935051804,-7231.10493647,0.00033683,2]
[362009782,1747935051813,-41869.6284388,0.00033687,2]
[362009783,1747935051823,-19324.4438948,0.00033688,2]
[362009784,1747935051833,-500.0,0.00033696,5]
[362009785,1747935051842,-420.0,0.00033697,5]
[362009786,1747935051852,-420.0,0.00033697,5]
[362009787,1747935051861,-420.0,0.00033697,5]
[362009788,1747935051870,-420.0,0.00033697,5]
[362009789,1747935051879,-420.0,0.00033697,5]
[362009790,1747935051889,-420.0,0.00033697,5]
[362009791,1747935051898,-229.65021751,0.00033697,5]
[362009792,1747935051907,-420.0,0.00033697,5]
[362009793,1747935051917,-420.0,0.00033697,5]
[362009794,1747935051927,-195.15658882,0.00033697,5]
[362009795,1747935051936,-420.0,0.00033697,5]
[362009796,1747935051945,-246.74733988,0.00033697,5]
[362009797,1747935051954,-420.0,0.00033697,5]
[362009798,1747935051963,-420.0,0.00033697,5]
[362009799,1747935051973,-250.0,0.00033697,5]
[362009800,1747935051983,-420.0,0.00033697,5]
[362009801,1747935051992,-420.0,0.00033697,5]
[362009802,1747935052002,-420.0,0.00033697,5]
[362009803,1747935052013,-420.0,0.00033697,5]
[362009804,1747935052023,-569.35969856,0.00033697,5]
[362009805,1747935052032,-420.0,0.00033697,5]
[362009806,1747935052042,-487.5,0.00033697,5]
[362009807,1747935052051,-420.0,0.00033697,5]
[362009808,1747935052061,-420.0,0.00033697,5]
[362009809,1747935052070,-420.0,0.00033697,5]
[362009810,1747935052080,-420.0,0.00033697,5]
[362009811,1747935052089,-420.0,0.00033697,5]
[362009812,1747935052098,-420.0,0.00033697,5]
[362009813,1747935052108,-420.0,0.00033697,5]
[362009814,1747935052118,-420.0,0.00033697,5]
[362009815,1747935052128,-420.0,0.00033697,5]
[362009816,1747935052140,-420.0,0.00033697,5]
[362009817,1747935052150,-420.0,0.00033697,5]
[362009818,1747935052159,-520.71107916,0.00033697,5]
[362009819,1747935052169,-420.0,0.00033697,5]
[362009820,1747935052178,-420.0,0.00033697,5]
[362009821,1747935052188,-420.0,0.00033697,5]
[362009822,1747935052197,-420.0,0.00033697,5]
[362009823,1747935052207,-420.0,0.00033697,5]
[362009824,1747935052216,-420.0,0.00033697,5]
[362009825,1747935052226,-420.0,0.00033697,5]
[362009826,1747935052236,-420.0,0.00033697,5]
[362009827,1747935052246,-420.0,0.00033697,5]
[362009828,1747935052256,-420.0,0.00033697,5]
[362009829,1747935052265,-420.0,0.00033697,5]
[362009830,1747935052274,-420.0,0.00033697,5]
[362009831,1747935052284,-420.0,0.00033697,5]
[362009832,1747935052294,-483.36,0.00033697,5]
[362009833,1747935052304,-420.0,0.00033697,5]
[362009834,1747935052313,-420.0,0.00033697,5]
[362009835,1747935052322,-420.0,0.00033697,5]
[362009836,1747935052334,-420.0,0.00033697,5]
[362009837,1747935052344,-420.0,0.00033697,5]
[362009838,1747935052353,-420.0,0.00033697,5]
[362009839,1747935052362,-420.0,0.00033697,5]
[362009840,1747935052371,-420.0,0.00033697,5]
[362009841,1747935052380,-420.0,0.00033697,5]
[362009842,1747935052389,-420.0,0.00033697,5]
[362009843,1747935052399,-420.0,0.00033697,5]
[362009844,1747935052408,-420.0,0.00033697,5]
[362009845,1747935052418,-420.0,0.00033697,5]
[362009846,1747935052427,-420.0,0.00033697,5]
[362009847,1747935052436,-545.28,0.00033697,5]
[362009848,1747935052446,-420.0,0.00033697,5]
[362009849,1747935052455,-520.34,0.00033697,5]
[362009850,1747935052464,-420.0,0.00033697,5]
[362009851,1747935052474,-191.56157936,0.00033697,5]
[362009852,1747935052483,-420.0,0.00033697,5]
[362009853,1747935052492,-565.42791442,0.00033697,5]
[362009854,1747935052501,-420.0,0.00033697,5]
[362009855,1747935052511,-420.0,0.00033697,5]
[362009856,1747935052520,-420.0,0.00033697,5]
[362009857,1747935052529,-420.0,0.00033697,5]
[362009858,1747935052539,-488.55,0.00033697,5]
[362009859,1747935052548,-420.0,0.00033697,5]
[362009860,1747935052557,-330.55097219,0.00033697,5]
[362009861,1747935052566,-420.0,0.00033697,5]
[362009862,1747935052575,-420.0,0.00033697,5]
[362009863,1747935052585,-420.0,0.00033697,5]
[362009864,1747935052594,-487.89,0.00033697,5]
[362009865,1747935052603,-420.0,0.00033697,5]
[362009866,1747935052612,-420.0,0.00033697,5]
[362009867,1747935052622,-420.0,0.00033697,5]
[362009868,1747935052631,-420.0,0.00033697,5]
[362009869,1747935052641,-420.0,0.00033697,5]
[362009870,1747935052650,-445.26,0.00033697,5]
[362009871,1747935052660,-420.0,0.00033697,5]
[362009872,1747935052670,-420.0,0.00033697,5]
[362009873,1747935052679,-483.68,0.00033697,5]
[362009874,1747935052689,-420.0,0.00033697,5]
[362009875,1747935052698,-420.0,0.00033697,5]
[362009876,1747935052708,-420.0,0.00033697,5]
[362009877,1747935052717,-420.0,0.00033697,5]
[362009878,1747935052726,-420.0,0.00033697,5]
[362009879,1747935052735,-420.0,0.00033697,5]
[362009880,1747935052745,-420.0,0.00033697,5]
[362009881,1747935052754,-420.0,0.00033697,5]
[362009882,1747935052764,-467.6,0.00033697,5]
[362009883,1747935052773,-420.0,0.00033697,5]
[362009884,1747935052782,-529.34,0.00033697,5]
[362009885,1747935052792,-420.0,0.00033697,5]
[362009886,1747935052801,-420.0,0.00033697,5]
[362009887,1747935052811,-420.0,0.00033697,5]
[362009888,1747935052820,-420.0,0.00033697,5]
[362009889,1747935052831,-150.812497,0.00033697,5]
[362009890,1747935052841,-420.0,0.00033697,5]
[362009891,1747935052850,-814.06,0.00033697,5]
[362009892,1747935052860,-430.11,0.00033697,5]
[362009893,1747935052869,-420.0,0.00033697,5]
[362009894,1747935052878,-545.18,0.00033697,5]
[362009895,1747935052887,-420.0,0.00033697,5]
[362009896,1747935052897,-420.0,0.00033697,5]
[362009897,1747935052906,-420.0,0.00033697,5]
[362009898,1747935052916,-420.0,0.00033697,5]
[362009899,1747935052925,-420.0,0.00033697,5]
[362009900,1747935052934,-420.0,0.00033697,5]
[362009901,1747935052944,-420.0,0.00033697,5]
[362009902,1747935052953,-420.0,0.00033697,5]
[362009903,1747935052962,-420.0,0.00033697,5]
[362009904,1747935052971,-420.0,0.00033697,5]
[362009905,1747935052981,-420.0,0.00033697,5]
[362009906,1747935052991,-420.0,0.00033697,5]
[362009907,1747935053001,-420.0,0.00033697,5]
[362009908,1747935053011,-515.22,0.00033697,5]
[362009909,1747935053020,-420.0,0.00033697,5]
[362009910,1747935053030,-540.09,0.00033697,5]
[362009911,1747935053040,-1107.41,0.00033697,5]
[362009912,1747935053051,-246.84549848,0.00033697,5]
[362009913,1747935053060,-420.0,0.00033697,5]
[362009914,1747935053070,-420.0,0.00033697,5]
[362009915,1747935053080,-420.0,0.00033697,5]
[362009916,1747935053090,-420.0,0.00033697,5]
[362009917,1747935053099,-420.0,0.00033697,5]
[362009918,1747935053109,-420.0,0.00033697,5]
[362009919,1747935053118,-420.0,0.00033697,5]
[362009920,1747935053129,-420.0,0.00033697,5]
[362009921,1747935053143,-420.0,0.00033697,5]
[362009922,1747935053152,-420.0,0.00033697,5]
[362009923,1747935053162,-420.0,0.00033697,5]
[362009924,1747935053171,-420.0,0.00033697,5]
[362009925,1747935053182,-420.0,0.00033697,5]
[362009926,1747935053191,-420.0,0.00033697,5]
[362009927,1747935053200,-420.0,0.00033697,5]
[362009928,1747935053210,-420.0,0.00033697,5]
[362009929,1747935053221,-420.0,0.00033697,5]
[362009930,1747935053230,-420.0,0.00033697,5]
[362009931,1747935053240,-420.0,0.00033697,5]
[362009932,1747935053249,-420.0,0.00033697,5]
[362009933,1747935053258,-420.0,0.00033697,5]
[362009934,1747935053268,-420.0,0.00033697,5]
[362009935,1747935053277,-420.0,0.00033697,5]
[362009936,1747935053287,-474.31,0.00033697,5]
[362009937,1747935053296,-420.0,0.00033697,5]
[362009938,1747935053306,-420.0,0.00033697,5]
[362009939,1747935053315,-420.0,0.00033697,5]
[362009940,1747935053325,-420.0,0.00033697,5]
[362009941,1747935053334,-420.0,0.00033697,5]
[362009942,1747935053343,-519.78,0.00033697,5]
[362009943,1747935053354,-420.0,0.00033697,5]
[362009944,1747935053363,-420.0,0.00033697,5]
[362009945,1747935053373,-420.0,0.00033697,5]
[362009946,1747935053382,-420.0,0.00033697,5]
[362009947,1747935053392,-420.0,0.00033697,5]
[362009948,1747935053401,-420.0,0.00033697,5]
[362009949,1747935053410,-280.04242328,0.00033697,5]
[362009950,1747935053420,-437.63,0.00033697,5]
[362009951,1747935053429,-598.72,0.00033697,5]
[362009952,1747935053439,-573.23,0.00033697,5]
[362009953,1747935053448,-420.0,0.00033697,5]
[362009954,1747935053458,-420.0,0.00033697,5]
[362009955,1747935053468,-420.0,0.00033697,5]
[362009956,1747935053477,-420.0,0.00033697,5]
[362009957,1747935053487,-559.0,0.00033697,5]
[362009958,1747935053497,-420.0,0.00033697,5]
[362009959,1747935053507,-420.0,0.00033697,5]
[362009960,1747935053516,-420.0,0.00033697,5]
[362009961,1747935053526,-451.99,0.00033697,5]
[362009962,1747935053535,-420.0,0.00033697,5]
[362009963,1747935053544,-431.02,0.00033697,5]
[362009964,1747935053554,-420.0,0.00033697,5]
[362009965,1747935053563,-420.0,0.00033697,5]
[362009966,1747935053572,-420.0,0.00033697,5]
[362009967,1747935053582,-420.0,0.00033697,5]
[362009968,1747935053591,-420.0,0.00033697,5]
[362009969,1747935053601,-420.0,0.00033697,5]
[362009970,1747935053610,-460.17,0.00033697,5]
[362009971,1747935053620,-420.0,0.00033697,5]
[362009972,1747935053629,-420.0,0.00033697,5]
[362009973,1747935053639,-420.0,0.00033697,5]
[362009974,1747935053648,-420.0,0.00033697,5]
[362009975,1747935053658,-420.0,0.00033697,5]
[362009976,1747935053667,-420.0,0.00033697,5]
[362009977,1747935053677,-420.0,0.00033697,5]
[362009978,1747935053688,-467.16,0.00033697,5]
[362009979,1747935053698,-420.0,0.00033697,5]
[362009980,1747935053707,-420.0,0.00033697,5]
[362009981,1747935053717,-3853.46,0.00033697,5]
[362009982,1747935053727,-296.00396984,0.00033697,5]
[362009983,1747935053737,-379.41307064,0.00033697,5]
[362009984,1747935053746,-772.8,0.00033697,5]
[362009985,1747935053755,-420.0,0.00033697,5]
[362009986,1747935053765,-420.0,0.00033697,5]
[362009987,1747935053774,-420.0,0.00033697,5]
[362009988,1747935053783,-420.0,0.00033697,5]
[362009989,1747935053793,-502.5,0.00033697,5]
[362009990,1747935053802,-494.65,0.00033697,5]
[362009991,1747935053812,-420.0,0.00033697,5]
[362009992,1747935053821,-509.71,0.00033697,5]
[362009993,1747935053831,-450.9,0.00033697,5]
[362009994,1747935053841,-420.0,0.00033697,5]
[362009995,1747935053851,-515.75,0.00033697,5]
[362009996,1747935053861,-2031.29,0.00033697,5]
[362009997,1747935053870,-420.0,0.00033697,5]
[362009998,1747935053880,-695.15,0.00033697,5]
[362009999,1747935053889,-549.77,0.00033697,5]
[362010000,1747935053899,-420.0,0.00033697,5]
[362010001,1747935053908,-420.0,0.00033697,5]
[362010002,1747935053917,-420.0,0.00033697,5]
[362010003,1747935053926,-420.0,0.00033697,5]
[362010004,1747935053936,-420.0,0.00033697,5]
[362010005,1747935053946,-420.0,0.00033697,5]
[362010006,1747935053955,-539.71,0.00033697,5]
[362010007,1747935053964,-546.16,0.00033697,5]
[362010008,1747935053974,-420.0,0.00033697,5]
[362010009,1747935053983,-420.0,0.00033697,5]
[362010010,1747935053993,-1565.37,0.00033697,5]
[362010011,1747935054002,-426.73,0.00033697,5]
[362010012,1747935054012,-482.45,0.00033697,5]
[362010013,1747935054021,-420.0,0.00033697,5]
[362010014,1747935054031,-420.0,0.00033697,5]
[362010015,1747935054040,-420.0,0.00033697,5]
[362010016,1747935054049,-4352.7,0.00033697,5]
[362010017,1747935054059,-420.0,0.00033697,5]
[362010018,1747935054068,-3225.07,0.00033697,5]
[362010019,1747935054077,-674.14,0.00033697,5]
[362010020,1747935054087,-1523.03,0.00033697,5]
[362010021,1747935054096,-420.0,0.00033697,5]
[362010022,1747935054106,-420.0,0.00033697,5]
[362010023,1747935054115,-867.25,0.00033697,5]
[362010024,1747935054125,-1360.92,0.00033697,5]
[362010025,1747935054138,-420.0,0.00033697,5]
[362010026,1747935054147,-420.0,0.00033697,5]
[362010027,1747935054158,-420.0,0.00033697,5]
[362010028,1747935054167,-443.04,0.00033697,5]
[362010029,1747935054177,-2555.07,0.00033697,5]
[362010030,1747935054186,-462.41,0.00033697,5]
[362010031,1747935054195,-420.0,0.00033697,5]
[362010032,1747935054205,-420.0,0.00033697,5]
[362010033,1747935054214,-420.0,0.00033697,5]
[362010034,1747935054224,-14415.92,0.00033697,5]
[362010035,1747935054233,-867.04,0.00033697,5]
[362010036,1747935054242,-420.0,0.00033697,5]
[362010037,1747935054251,-420.0,0.00033697,5]
[362010038,1747935054261,-976.26,0.00033697,5]
[362010039,1747935054269,-420.0,0.00033697,5]
[362010040,1747935054279,-431.29075856,0.00033697,5]
[362010041,1747935054288,-582.57,0.00033697,5]
[362010042,1747935054297,-1157.52,0.00033697,5]
[362010043,1747935054306,-420.0,0.00033697,5]
[362010044,1747935054316,-437.12,0.00033697,5]
[362010045,1747935054326,-424.93,0.00033697,5]
[362010046,1747935054335,-420.0,0.00033697,5]
[362010047,1747935054345,-527.89,0.00033697,5]
[362010048,1747935054355,-642.66,0.00033697,5]
[362010049,1747935054364,-420.0,0.00033697,5]
[362010050,1747935054374,-420.0,0.00033697,5]
[362010051,1747935054383,-420.0,0.00033697,5]
[362010052,1747935054393,-420.0,0.00033697,5]
[362010053,1747935054402,-420.0,0.00033697,5]
[362010054,1747935054411,-534.29,0.00033697,5]
[362010055,1747935054420,-574.48,0.00033697,5]
[362010056,1747935054430,-1196.46,0.00033697,5]
[362010057,1747935054439,-636.39,0.00033697,5]
[362010058,1747935054448,-1119.48,0.00033697,2]
[362010059,1747935054458,-498.52,0.00033697,5]
[362010060,1747935054467,-806.79,0.00033697,5]
[362010061,1747935054476,-572.8,0.00033697,5]
[362010062,1747935054486,-420.0,0.00033697,5]
[362010063,1747935054496,-420.0,0.00033697,5]
[362010064,1747935054507,-420.0,0.00033697,5]
[362010065,1747935054516,-420.0,0.00033697,5]
[362010066,1747935054526,-420.0,0.00033697,5]
[362010067,1747935054536,-420.0,0.00033697,5]
[362010068,1747935054545,-849.42,0.00033697,5]
[362010069,1747935054555,-177.91897651,0.00033697,5]
[362010070,1747935054565,-507.68,0.00033697,5]
[362010071,1747935054574,-420.0,0.00033697,5]
[362010072,1747935054583,-614.28,0.00033697,5]
[362010073,1747935054592,-420.0,0.00033697,5]
[362010074,1747935054601,-7277.43,0.00033697,5]
[362010075,1747935054610,-420.0,0.00033697,5]
[362010076,1747935054619,-420.0,0.00033697,5]
[362010077,1747935054629,-420.0,0.00033697,5]
[362010078,1747935054638,-420.0,0.00033697,5]
[362010079,1747935054647,-639.67,0.00033697,5]
[362010080,1747935054656,-756.23,0.00033697,5]
[362010081,1747935054665,-733.4,0.00033697,5]
[362010082,1747935054675,-420.0,0.00033697,5]
[362010083,1747935054684,-440.65,0.00033697,5]
[362010084,1747935054693,-649.32,0.00033697,5]
[362010085,1747935054703,-420.0,0.00033697,5]
[362010086,1747935054713,-420.0,0.00033697,5]
[362010087,1747935054723,-420.0,0.00033697,5]
[362010088,1747935054732,-420.0,0.00033697,5]
[362010089,1747935054742,-420.0,0.00033697,5]
[362010090,1747935054751,-420.0,0.00033697,5]
[362010091,1747935054760,-420.0,0.00033697,5]
[362010092,1747935054769,-420.0,0.00033697,5]
[362010093,1747935054779,-420.0,0.00033697,5]
[362010094,1747935054788,-420.0,0.00033697,5]
[362010095,1747935054797,-741.9,0.00033697,5]
[362010096,1747935054807,-497.19,0.00033697,5]
[362010097,1747935054816,-1998.51,0.00033697,5]
[362010098,1747935054825,-470.36,0.00033697,5]
[362010099,1747935054835,-420.0,0.00033697,5]
[362010100,1747935054845,-639.49,0.00033697,5]
[362010101,1747935054854,-420.0,0.00033697,5]
[362010102,1747935054864,-1494.47,0.00033697,5]
[362010103,1747935054872,-511.54,0.00033697,5]
[362010104,1747935054881,-420.0,0.00033697,5]
[362010105,1747935054891,-420.0,0.00033697,5]
[362010106,1747935054901,-708.15,0.00033697,5]